bitfinex/quotes_SOLUSD_20240612
["timestamp","ask_amount","ask_price","bid_price","bid_amount"]
[1718202844926,2.6424,160.7,160.62,45.0]
[1718202845302,2.1424,160.7,160.62,45.0]
[1718202845501,102.1424,160.7,160.62,45.0]
[1718202845724,2.1424,160.7,160.62,45.0]
[1718202846031,2.3023,160.71,160.62,45.0]
[1718202846336,0.17,160.72,160.62,45.0]
[1718202846503,100.0,160.72,160.62,45.0]
[1718202846909,2.3023,160.71,160.62,45.0]
[1718202847511,100.0,160.72,160.62,45.0]
[1718202847512,2.3025,160.7,160.62,45.0]
[1718202847709,2.3023,160.71,160.62,45.0]
[1718202848107,2.3024,160.7,160.62,45.0]
[1718202848521,2.3023,160.71,160.62,45.0]
[1718202848835,2.3024,160.7,160.62,45.0]
[1718202849127,102.6421,160.72,160.62,45.0]
[1718202849341,102.4721,160.72,160.62,45.0]
[1718202849506,100.17,160.72,160.62,45.0]
[1718202849705,100.0,160.72,160.64,6.2518]
[1718202849906,2.3025,160.7,160.65,45.0]
[1718202850112,0.17,160.71,160.65,45.0]
[1718202850337,0.34,160.71,160.65,45.0]
[1718202850536,100.0,160.72,160.65,45.0]
[1718202850834,102.3021,160.72,160.65,45.0]
[1718202851213,102.3022,160.72,160.65,45.0]
[1718202851522,102.3022,160.72,160.52,144.55681719]
[1718202851523,100.0,160.67,160.59,22.1247]
[1718202851724,0.68,160.66,160.59,22.1247]
[1718202852021,100.0,160.68,160.59,22.1247]
[1718202852335,0.17,160.71,160.59,22.1247]
[1718202852531,0.34,160.71,160.59,22.1247]
[1718202852718,2.3025,160.7,160.59,22.1247]
[1718202852918,2.6423,160.71,160.59,22.1247]
[1718202853232,2.3026,160.69,160.59,22.1247]
[1718202853431,2.3026,160.69,160.6,65.34]
[1718202854036,100.0,160.68,160.6,65.0]
[1718202854216,2.3031,160.66,160.59,22.1247]
[1718202854631,2.3031,160.65,160.59,22.1247]
[1718202855435,2.3033,160.64,160.59,22.1247]
[1718202855732,2.473,160.66,160.59,22.1247]
[1718202855909,100.17,160.68,160.59,22.1247]
[1718202856112,2.4729,160.67,160.59,22.1247]
[1718202856328,102.4724,160.7,160.59,22.1247]
[1718202856607,2.3026,160.69,160.59,22.1247]
[1718202856825,2.3027,160.68,160.59,22.1247]
[1718202857136,100.0,160.7,160.59,22.1247]
[1718202857137,102.3024,160.7,160.59,22.1247]
[1718202857512,100.0,160.7,160.6,0.17]
[1718202858414,0.17,160.71,160.61,16.2971]
[1718202858635,2.3024,160.7,160.61,16.2971]
[1718202859039,100.0,160.74,160.63,15.9148]
[1718202859308,100.0,160.67,160.54,22.5183]
[1718202859536,2.3033,160.64,160.54,22.5183]
[1718202859729,2.3032,160.65,160.54,22.5183]
[1718202859942,2.3032,160.64,160.54,22.5183]
[1718202860313,2.3033,160.64,160.54,22.5183]
[1718202860513,100.0,160.65,160.55,20.0]
[1718202860717,2.3037,160.61,160.54,22.5183]
[1718202860918,2.3036,160.62,160.54,22.5183]
[1718202861535,6.9108,160.62,160.54,22.5183]
[1718202861742,2.3037,160.61,160.54,22.5183]
[1718202861942,104.7769,160.63,160.54,22.5183]
[1718202862114,2.3041,160.59,160.54,22.5183]
[1718202862316,2.304,160.59,160.54,22.5183]
[1718202862724,2.3041,160.58,160.54,22.5183]
[1718202863412,2.3042,160.57,160.54,22.5183]
[1718202863639,2.3044,160.56,160.54,22.5183]
[1718202863942,102.3043,160.57,160.54,22.5183]
[1718202864618,0.17,160.58,160.54,22.5183]
[1718202864815,100.0,160.59,160.54,22.5183]
[1718202866217,2.3039,160.6,160.54,22.5183]
[1718202866838,2.4737,160.61,160.54,22.5183]
[1718202867027,2.3037,160.61,160.54,22.5183]
[1718202867334,2.3038,160.6,160.54,22.5183]
[1718202867631,2.304,160.59,160.54,22.5183]
[1718202867834,100.17,160.61,160.54,22.5183]
[1718202868022,2.304,160.59,160.54,22.5183]
[1718202868339,2.4739,160.6,160.54,22.5183]
[1718202868638,2.3041,160.58,160.54,22.5183]
[1718202869226,2.4739,160.6,160.54,22.5183]
[1718202869538,2.304,160.59,160.54,22.5183]
[1718202869723,2.3041,160.58,160.54,22.5183]
[1718202870332,2.3042,160.58,160.54,22.5183]
[1718202871136,2.3044,160.56,160.54,22.5183]
[1718202871538,2.3045,160.55,160.54,15.9148]
[1718202871745,0.17,160.55,160.5,6.4625]
[1718202872048,104.9492,160.55,160.5,6.4625]
[1718202872339,2.3049,160.53,160.5,6.4625]
[1718202872552,2.3051,160.52,160.5,6.4625]
[1718202872769,100.0,160.53,160.46,16.3239]
[1718202872918,0.34,160.52,160.46,22.9795]
[1718202873116,100.0,160.51,160.46,22.9795]
[1718202873349,2.3054,160.49,160.46,22.9795]
[1718202873717,2.3053,160.5,160.46,22.9795]
[1718202873932,100.0,160.51,160.46,22.9795]
[1718202874145,2.3054,160.49,160.46,22.9795]
[1718202874325,0.17,160.5,160.46,22.9795]
[1718202874531,2.6454,160.5,160.46,22.9795]
[1718202874846,2.6453,160.5,160.46,22.9795]
[1718202875030,2.3054,160.49,160.46,22.9795]
[1718202875418,104.6109,160.49,160.36,44.9352]
[1718202875624,0.17,160.48,160.37,0.17]
[1718202875835,0.17,160.5,160.39,6.2496]
[1718202876037,102.3055,160.49,160.39,6.2496]
[1718202876262,0.17,160.48,160.39,6.2496]
[1718202876444,2.4754,160.5,160.39,6.2496]
[1718202876744,2.4754,160.49,160.39,6.2496]
[1718202876934,102.4754,160.49,160.39,6.2496]
[1718202877136,2.3055,160.48,160.39,6.2496]
[1718202877338,102.4755,160.49,160.39,6.2496]
[1718202877547,102.4754,160.49,160.39,6.2496]
[1718202877932,2.4754,160.49,160.39,6.2496]
[1718202878132,0.17,160.49,160.39,6.2496]
[1718202878351,2.6454,160.49,160.39,6.2496]
[1718202878549,0.34,160.49,160.39,6.2496]
[1718202878727,2.3053,160.5,160.4,0.34]
[1718202879231,0.17,160.51,160.4,0.34]
[1718202879429,2.4752,160.51,160.4,0.34]
[1718202879634,2.4752,160.5,160.4,0.34]
[1718202879830,2.3055,160.49,160.4,0.34]
[1718202880226,11.6966,160.5,160.41,15.5846]
[1718202880445,2.3058,160.47,160.41,15.5846]
[1718202880654,0.34,160.48,160.41,15.5846]
[1718202880854,2.3062,160.44,160.41,15.5846]
[1718202881754,2.306,160.45,160.41,15.5846]
[1718202882047,2.3061,160.44,160.41,15.5846]
[1718202882253,2.3063,160.43,160.41,15.5846]
[1718202883122,4.6126,160.43,160.39,6.2496]
[1718202883324,2.6465,160.42,160.39,6.2496]
[1718202883552,102.3062,160.44,160.39,6.2496]
[1718202883785,100.0,160.44,160.39,6.2496]
[1718202883962,2.3063,160.43,160.39,6.2496]
[1718202884256,102.3062,160.44,160.39,6.2496]
[1718202884459,0.34,160.45,160.39,6.2496]
[1718202884669,2.8159,160.46,160.39,6.2496]
[1718202884951,2.306,160.45,160.39,6.2496]
[1718202885161,2.3063,160.43,160.39,6.2496]
[1718202886245,0.34,160.42,160.39,6.2496]
[1718202886461,2.3063,160.43,160.39,6.2496]
[1718202887175,2.6462,160.44,160.39,6.2496]
[1718202887474,0.17,160.44,160.39,6.2496]
[1718202887844,100.0,160.45,160.39,6.2496]
[1718202888067,100.0,160.5,160.39,6.2496]
[1718202888442,2.3058,160.47,160.39,6.2496]
[1718202888768,100.0,160.48,160.39,6.2496]
[1718202888769,2.3058,160.46,160.39,6.2496]
[1718202889062,2.3059,160.46,160.39,6.2496]
[1718202889439,2.3057,160.47,160.39,6.2496]
[1718202889942,102.3056,160.48,160.39,6.2496]
[1718202890142,100.0,160.48,160.39,6.2496]
[1718202890354,2.3059,160.46,160.39,6.2496]
[1718202890638,0.34,160.47,160.39,6.2496]
[1718202890846,2.4757,160.47,160.39,6.2496]
[1718202891061,2.3058,160.46,160.39,6.2496]
[1718202891364,2.306,160.45,160.39,6.2496]
[1718202891746,2.3058,160.46,160.39,6.2496]
[1718202891950,2.3059,160.46,160.39,6.2496]
[1718202892159,2.6458,160.47,160.39,6.2496]
[1718202892363,2.3059,160.46,160.39,6.2496]
[1718202892565,2.6457,160.47,160.39,6.2496]
[1718202893074,100.0,160.48,160.39,6.2496]
[1718202893370,0.17,160.47,160.39,6.2496]
[1718202893662,2.3059,160.46,160.39,6.2496]
[1718202893860,2.306,160.45,160.39,6.2496]
[1718202894163,0.34,160.47,160.39,6.2496]
[1718202894164,100.0,160.46,160.39,6.2496]
[1718202894364,0.34,160.45,160.39,6.2496]
[1718202894588,11.8701,160.45,160.39,6.2496]
[1718202894760,2.646,160.45,160.39,6.2496]
[1718202895886,0.34,160.45,160.39,6.2496]
[1718202896184,2.3058,160.46,160.39,6.2496]
[1718202896372,2.8158,160.47,160.39,6.2496]
[1718202896558,2.4758,160.46,160.39,6.2496]
[1718202896764,2.306,160.45,160.39,6.2496]
[1718202896964,4.7817,160.46,160.39,6.2496]
[1718202897276,2.3064,160.42,160.39,6.2496]
[1718202897461,0.17,160.41,160.39,6.2496]
[1718202897974,2.4766,160.41,160.39,6.2496]
[1718202898174,0.17,160.41,160.39,6.2496]
[1718202899664,2.4766,160.41,160.39,6.2496]
[1718202900364,0.17,160.41,160.39,6.2496]
[1718202900566,0.51,160.42,160.39,6.2496]
[1718202900869,2.6464,160.42,160.39,6.2496]
[1718202901079,0.34,160.42,160.39,6.2496]
[1718202901883,2.3061,160.45,160.39,6.2496]
[1718202902078,104.6116,160.47,160.39,6.2496]
[1718202902079,100.0,160.47,160.39,6.2496]
[1718202902278,2.306,160.45,160.39,6.2496]
[1718202902470,100.0,160.47,160.39,6.2496]
[1718202902471,2.3061,160.44,160.39,6.2496]
[1718202902875,100.0,160.44,160.39,6.2496]
[1718202903385,2.3064,160.42,160.39,6.2496]
[1718202903591,0.34,160.43,160.39,6.2496]
[1718202904088,0.17,160.43,160.39,6.2496]
[1718202904594,2.6463,160.43,160.39,6.2496]
[1718202905191,2.3064,160.42,160.39,6.2496]
[1718202905985,0.17,160.41,160.39,6.2496]
[1718202906185,2.3067,160.4,160.37,15.0915]
[1718202906386,2.9866,160.41,160.37,15.0915]
[1718202907286,2.3067,160.4,160.37,15.0915]
[1718202907690,2.9866,160.41,160.37,15.0915]
[1718202908586,9.227,160.4,160.37,15.0915]
[1718202908788,0.68,160.41,160.37,15.0915]
[1718202908971,0.17,160.41,160.37,15.0915]
[1718202909391,2.9864,160.42,160.37,15.0915]
[1718202909785,0.68,160.42,160.37,15.0915]
[1718202910175,0.34,160.42,160.37,15.0915]
[1718202910392,0.17,160.42,160.37,15.0915]
[1718202910599,0.51,160.43,160.37,15.0915]
[1718202910899,2.8163,160.43,160.37,15.0915]
[1718202911100,2.3064,160.42,160.37,15.0915]
[1718202911286,2.3065,160.41,160.37,15.0915]
[1718202911480,0.34,160.4,160.37,15.0915]
[1718202911689,2.4769,160.39,160.37,15.0915]
[1718202911991,0.34,160.39,160.37,15.0915]
[1718202912186,2.6468,160.39,160.37,15.0915]
[1718202912593,0.34,160.39,160.37,15.0915]
[1718202914176,0.34,160.39,160.35,6.5262]
[1718202914392,2.647,160.38,160.35,6.5262]
[1718202914588,0.34,160.38,160.35,6.5262]
[1718202914807,0.17,160.38,160.35,6.5262]
[1718202915499,0.34,160.38,160.35,6.5262]
[1718202915676,0.17,160.37,160.35,6.5262]
[1718202915876,0.17,160.37,160.33,16.3159]
[1718202915877,0.51,160.37,160.33,16.3159]
[1718202916382,0.17,160.36,160.33,16.3159]
[1718202916704,0.34,160.37,160.33,16.3159]
[1718202916917,2.4771,160.37,160.33,16.3159]
[1718202917105,0.51,160.36,160.33,16.3159]
[1718202917291,2.8173,160.36,160.33,16.3159]
[1718202917480,0.51,160.36,160.33,16.3159]
[1718202917683,0.17,160.36,160.33,16.3159]
[1718202917880,0.17,160.35,160.31,6.5833]
[1718202918303,102.4773,160.36,160.31,6.5833]
[1718202918512,2.4776,160.34,160.31,6.5833]
[1718202918682,0.17,160.33,160.29,15.6043]
[1718202919012,0.17,160.32,160.29,15.6043]
[1718202919216,7.47,160.31,160.29,15.6043]
[1718202919424,7.64,160.3,160.27,6.5209]
[1718202919709,0.17,160.29,160.27,6.5209]
[1718202920807,0.34,160.29,160.25,16.485]
[1718202921186,2.6484,160.29,160.25,16.485]
[1718202921515,0.17,160.28,160.25,16.485]
[1718202922711,0.34,160.28,160.25,16.485]
[1718202922882,0.17,160.27,160.25,16.485]
[1718202923083,0.34,160.27,160.23,6.4364]
[1718202924199,0.17,160.26,160.23,6.4364]
[1718202924705,2.8187,160.26,160.21,16.0185]
[1718202924887,0.17,160.25,160.21,16.0185]
[1718202925282,0.17,160.26,160.21,16.0185]
[1718202925512,0.17,160.25,160.21,16.0185]
[1718202925684,0.17,160.23,160.18,6.4606]
[1718202925887,0.51,160.23,160.18,6.4606]
[1718202926497,0.34,160.23,160.18,6.4606]
[1718202926686,0.34,160.23,160.18,5.4606]
[1718202927087,0.34,160.23,160.17,15.4073]
[1718202927808,2.6492,160.23,160.17,15.4073]
[1718202928013,2.3094,160.22,160.17,15.4073]
[1718202928194,2.6492,160.23,160.17,15.4073]
[1718202928590,0.17,160.22,160.17,15.4073]
[1718202928790,0.51,160.22,160.17,15.4073]
[1718202930495,2.4795,160.21,160.13,22.6236]
[1718202930705,0.34,160.2,160.13,22.6236]
[1718202931603,0.17,160.19,160.13,22.6236]
[1718202931813,2.6498,160.19,160.13,22.6236]
[1718202932013,0.34,160.18,160.13,16.4891]
[1718202932225,2.6499,160.18,160.13,16.4891]
[1718202932408,4.619,160.21,160.13,16.4891]
[1718202932409,2.3094,160.21,160.13,16.4891]
[1718202932630,0.17,160.23,160.13,16.4891]
[1718202932940,100.0,160.27,160.14,28.8336]
[1718202933306,102.3083,160.29,160.14,28.8336]
[1718202933507,100.0,160.27,160.14,28.8336]
[1718202933716,369.1025,160.3,160.15,20.0]
[1718202933936,366.7942,160.3,160.15,20.0]
[1718202934223,366.7942,160.3,160.16,0.17]
[1718202934425,100.0,160.3,160.17,16.2079]
[1718202934605,2.3083,160.29,160.18,20.0]
[1718202935128,100.0,160.32,160.18,20.0]
[1718202935303,2.3083,160.29,160.19,6.3234]
[1718202935504,2.3082,160.3,160.19,6.3234]
[1718202935712,2.3083,160.29,160.19,6.3234]
[1718202935924,2.3086,160.27,160.19,6.3234]
[1718202936115,100.0,160.3,160.19,6.3234]
[1718202936330,2.3084,160.28,160.19,6.3234]
[1718202936808,2.3086,160.27,160.19,6.3234]
[1718202937530,0.51,160.26,160.19,6.3234]
[1718202937727,0.34,160.26,160.19,6.3234]
[1718202937904,0.34,160.27,160.19,6.3234]
[1718202938408,2.3088,160.26,160.19,6.3234]
[1718202938736,0.17,160.25,160.19,6.3234]
[1718202938912,0.34,160.26,160.19,6.3234]
[1718202939111,2.6486,160.27,160.19,6.3234]
[1718202939112,0.34,160.27,160.19,6.3234]
[1718202939435,0.17,160.27,160.19,6.3234]
[1718202940157,0.34,160.27,160.19,6.3234]
[1718202940443,2.4789,160.25,160.19,6.3234]
[1718202940613,0.17,160.24,160.19,6.3234]
[1718202940814,2.6488,160.26,160.19,6.3234]
[1718202941025,0.34,160.25,160.19,6.3234]
[1718202941224,2.479,160.24,160.19,6.3234]
[1718202941430,0.17,160.23,160.19,6.3234]
[1718202941614,2.3093,160.22,160.17,16.2079]
[1718202941814,2.8195,160.21,160.17,16.2079]
[1718202942047,2.6495,160.21,160.17,16.2079]
[1718202942344,0.17,160.2,160.17,16.2079]
[1718202942507,0.34,160.21,160.17,16.2079]
[1718202942852,2.6493,160.22,160.17,16.2079]
[1718202943134,0.34,160.21,160.17,16.2079]
[1718202943510,0.17,160.21,160.17,16.2079]
[1718202943711,0.51,160.22,160.17,16.2079]
[1718202944134,2.8193,160.22,160.17,16.2079]
[1718202944518,2.3095,160.21,160.17,16.2079]
[1718202944718,0.17,160.2,160.17,16.2079]
[1718202945225,0.34,160.21,160.17,16.2079]
[1718202945432,2.4795,160.21,160.17,16.2079]
[1718202945931,2.3096,160.2,160.17,16.2079]
[1718202946131,2.3097,160.19,160.15,6.649]
[1718202946349,2.3096,160.2,160.15,6.649]
[1718202946657,4.959,160.21,160.15,6.649]
[1718202946819,2.3098,160.19,160.15,6.649]
[1718202947132,2.3096,160.2,160.15,6.649]
[1718202948032,2.4795,160.21,160.15,6.649]
[1718202948230,0.17,160.21,160.15,6.649]
[1718202948630,2.4794,160.21,160.15,6.649]
[1718202949257,2.3096,160.2,160.15,6.649]
[1718202949758,2.6495,160.21,160.15,6.649]
[1718202949955,0.17,160.2,160.15,6.649]
[1718202951220,2.4796,160.2,160.15,6.649]
[1718202951420,0.34,160.21,160.15,6.649]
[1718202951421,0.17,160.21,160.15,6.649]
[1718202951624,2.3095,160.21,160.15,6.649]
[1718202952226,2.8193,160.22,160.15,6.649]
[1718202952427,0.17,160.22,160.15,6.649]
[1718202952655,2.309,160.24,160.15,6.649]
[1718202952656,0.51,160.23,160.15,6.649]
[1718202952924,0.17,160.23,160.15,6.649]
[1718202953559,2.4792,160.23,160.15,6.649]
[1718202953930,0.34,160.23,160.15,6.649]
[1718202954135,2.3093,160.22,160.15,6.649]
[1718202954459,0.17,160.23,160.15,6.649]
[1718202954630,2.4792,160.23,160.15,6.649]
[1718202954829,0.17,160.23,160.15,6.649]
[1718202955151,2.4792,160.23,160.15,6.649]
[1718202955470,0.17,160.23,160.15,6.649]
[1718202955649,2.4791,160.23,160.15,6.649]
[1718202955966,0.17,160.23,160.15,6.649]
[1718202956352,2.309,160.24,160.15,6.649]
[1718202956753,2.4789,160.25,160.15,6.649]
[1718202957078,2.309,160.24,160.2,7.48]
[1718202957572,2.309,160.24,160.21,7.48]
[1718202957864,2.3091,160.23,160.16,29.92]
[1718202958078,2.3091,160.23,160.19,7.48]
[1718202958255,2.3094,160.22,160.15,6.649]
[1718202958453,108.5942,160.31,160.21,7.48]
[1718202958658,2.3083,160.3,160.22,6.2022]
[1718202958884,100.0,160.33,160.27,7.48]
[1718202959066,2.3079,160.32,160.26,7.48]
[1718202959271,2.3079,160.32,160.27,7.48]
[1718202959448,2.308,160.31,160.27,7.48]
[1718202959658,2.3078,160.32,160.28,7.48]
[1718202959844,2.308,160.31,160.28,7.48]
[1718202960049,2.308,160.31,160.22,6.2022]
[1718202960269,2.308,160.31,160.27,7.48]
[1718202960474,100.0,160.31,160.22,6.2022]
[1718202960665,2.3082,160.3,160.25,7.48]
[1718202960870,2.3082,160.3,160.22,6.2022]
[1718202961456,0.17,160.31,160.22,6.2022]
[1718202961650,2.4782,160.3,160.22,6.2022]
[1718202961848,2.3085,160.28,160.22,6.2022]
[1718202962051,2.3088,160.26,160.22,6.2022]
[1718202962371,2.4788,160.25,160.22,6.2022]
[1718202962575,2.3088,160.26,160.22,6.2022]
[1718202962765,0.17,160.25,160.22,6.2022]
[1718202962957,0.17,160.26,160.22,6.2022]
[1718202963263,2.4787,160.26,160.22,6.2022]
[1718202963562,0.17,160.25,160.22,6.2022]
[1718202964264,0.34,160.26,160.22,6.2022]
[1718202964970,2.6487,160.26,160.22,6.2022]
[1718202965166,0.34,160.26,160.22,6.2022]
[1718202965563,2.6487,160.26,160.22,6.2022]
[1718202965780,2.309,160.24,160.2,15.6133]
[1718202965952,2.3093,160.22,160.2,15.6133]
[1718202966160,2.4792,160.23,160.2,15.6133]
[1718202966975,16.1605,160.27,160.2,15.6133]
[1718202966976,2.3086,160.27,160.2,15.6133]
[1718202967148,0.51,160.26,160.2,15.6133]
[1718202967348,100.0,160.29,160.2,15.6133]
[1718202967349,2.3083,160.29,160.2,15.6133]
[1718202967554,2.3081,160.3,160.2,15.6133]
[1718202967759,2.308,160.31,160.2,15.6133]
[1718202968454,100.0,160.31,160.2,15.6133]
[1718202968652,2.3084,160.28,160.2,15.6133]
[1718202968854,2.3086,160.27,160.2,15.6133]
[1718202969279,0.17,160.28,160.2,15.6133]
[1718202969582,2.3088,160.26,160.2,15.6133]
[1718202969776,0.68,160.28,160.2,15.6133]
[1718202970086,0.17,160.28,160.2,15.6133]
[1718202970291,0.17,160.29,160.2,15.6133]
[1718202970466,0.17,160.29,160.2,38.0433]
[1718202970780,0.34,160.3,160.21,6.595]
[1718202970983,0.51,160.31,160.21,6.595]
[1718202971484,2.818,160.31,160.21,6.595]
[1718202971997,258.2,160.35,160.26,22.43]
[1718202972199,100.0,160.39,160.26,22.43]
[1718202972370,13.2077,160.4,160.26,22.43]
[1718202972371,100.0,160.37,160.26,22.43]
[1718202972581,2.3076,160.34,160.26,22.43]
[1718202972795,2.3076,160.34,160.25,6.4976]
[1718202972990,2.3076,160.34,160.26,20.0]
[1718202973193,100.0,160.35,160.25,6.4976]
[1718202973390,2.3077,160.33,160.25,6.4976]
[1718202973577,2.3075,160.35,160.26,1.24656291]
[1718202973781,2.3075,160.35,160.25,6.4976]
[1718202974082,0.17,160.34,160.25,6.4976]
[1718202974285,2.3077,160.33,160.25,6.4976]
[1718202974504,2.3079,160.32,160.25,6.4976]
[1718202975197,0.17,160.31,160.25,6.4976]
[1718202975380,2.9881,160.31,160.25,6.4976]
[1718202975783,2.3081,160.3,160.25,6.4976]
[1718202975988,0.68,160.31,160.25,6.4976]
[1718202975989,0.51,160.29,160.25,6.4976]
[1718202976183,0.34,160.29,160.25,6.4976]
[1718202976384,0.17,160.29,160.25,6.4976]
[1718202977690,0.17,160.28,160.25,6.4976]
[1718202977899,0.34,160.28,160.25,6.4976]
[1718202978093,0.51,160.28,160.25,6.4976]
[1718202978501,2.8184,160.28,160.24,15.161]
[1718202978708,2.3086,160.27,160.24,15.161]
[1718202979003,2.8185,160.28,160.24,15.161]
[1718202979204,0.51,160.28,160.24,15.161]
[1718202979400,2.8184,160.28,160.24,15.161]
[1718202980077,2.3086,160.27,160.24,15.161]
[1718202980283,2.6487,160.26,160.24,15.161]
[1718202980498,2.8185,160.28,160.24,15.161]
[1718202980697,0.51,160.28,160.24,15.161]
[1718202980904,0.34,160.28,160.24,15.161]
[1718202981294,0.17,160.28,160.24,15.161]
[1718202981618,0.51,160.29,160.24,15.161]
[1718202981790,2.3078,160.33,160.24,15.161]
[1718202981992,2.3076,160.34,160.24,15.161]
[1718202982513,102.3074,160.35,160.25,1.24493341]
[1718202982698,2.3075,160.34,160.25,1.24493341]
[1718202982884,102.3075,160.35,160.25,1.24493341]
[1718202983083,100.0,160.38,160.25,6.0634]
[1718202983300,2.3075,160.35,160.25,28.4934]
[1718202983605,2.3077,160.33,160.25,28.4934]
[1718202983980,100.0,160.36,160.25,28.4934]
[1718202984311,100.0,160.34,160.25,6.0634]
[1718202984489,2.3082,160.3,160.25,6.0634]
[1718202984892,0.34,160.31,160.25,6.0634]
[1718202985112,0.17,160.3,160.25,6.0634]
[1718202985282,2.648,160.31,160.25,6.0634]
[1718202985606,0.34,160.3,160.25,6.0634]
[1718202985812,2.6482,160.3,160.25,6.0634]
[1718202986003,2.3083,160.29,160.25,6.0634]
[1718202986592,0.17,160.28,160.25,6.0634]
[1718202986991,2.4785,160.28,160.24,15.161]
[1718202987187,0.34,160.28,160.24,15.161]
[1718202987403,2.3086,160.27,160.24,15.161]
[1718202987614,2.6485,160.28,160.24,15.161]
[1718202988113,2.4786,160.27,160.24,15.161]
[1718202988286,2.3075,160.35,160.25,6.3155]
[1718202988492,102.3073,160.36,160.25,6.3155]
[1718202989919,0.34,160.35,160.25,6.3155]
[1718202990211,0.17,160.34,160.25,6.3155]
[1718202991121,0.34,160.34,160.25,6.3155]
[1718202991288,0.17,160.34,160.25,6.3155]
[1718202992129,2.4776,160.34,160.25,6.3155]
[1718202992289,0.17,160.34,160.25,6.3155]
[1718202992900,2.3077,160.33,160.25,6.3155]
[1718202993100,0.17,160.32,160.25,6.3155]
[1718202994112,2.9879,160.32,160.25,6.3155]
[1718202995025,0.68,160.32,160.25,6.3155]
[1718202995313,0.34,160.32,160.25,6.3155]
[1718202995484,0.17,160.32,160.25,6.3155]
[1718202995684,104.6144,160.37,160.25,6.3155]
[1718202996119,2.3075,160.35,160.25,6.3155]
[1718202996488,2.3073,160.36,160.25,6.3155]
[1718202996695,2.3074,160.35,160.25,6.3155]
[1718202996922,0.17,160.34,160.25,6.3155]
[1718202997518,2.4776,160.34,160.25,6.3155]
[1718202997699,2.4777,160.33,160.25,6.3155]
[1718202998013,0.17,160.33,160.25,6.3155]
[1718202998316,2.3077,160.33,160.25,6.3155]
[1718202998512,0.17,160.32,160.25,6.3155]
[1718202999215,0.17,160.33,160.25,6.3155]
[1718202999515,0.17,160.34,160.25,6.3155]
[1718203000426,0.51,160.35,160.25,6.3155]
[1718203001125,0.17,160.35,160.26,16.4655]
[1718203001323,0.68,160.36,160.26,16.4655]
[1718203001718,2.9873,160.36,160.26,16.4655]
[1718203003518,0.68,160.36,160.26,16.4655]
[1718203003839,2.3075,160.35,160.26,16.4655]
[1718203004209,0.68,160.36,160.26,16.4655]
[1718203005844,2.3074,160.35,160.26,16.4655]
[1718203006006,2.6476,160.34,160.26,16.4655]
[1718203006212,2.3078,160.32,160.26,16.4655]
[1718203006712,2.3078,160.33,160.26,16.4655]
[1718203006912,4.9552,160.34,160.26,16.4655]
[1718203006913,0.17,160.32,160.26,16.4655]